[Event "XIII Mediterranean Championship 2023"]
[Site "Castell-Platja d Aro"]
[Date "2023.11.05"]
[Round "2.3"]
[White "Gines Esteo, Pedro Antonio"]
[Black "Martin Barcelo, Carles"]
[Result "1-0"]
[ECO "A17"]
[WhiteElo "2490"]
[BlackElo "2242"]
[Annotator "RC"]
[PlyCount "69"]
[EventDate "2023.10.26"]
[EventType "swiss"]
[EventCountry "ESP"]
[SourceTitle "playchess.com"]
[Source "ChessBase"]
[SourceQuality "1"]
[TimeControl "5400+30"]

1. Nf3 {[%emt 1:31:00]} Nf6 {[%emt 1:31:00]} 2. c4 {[%emt 0:00:30]} e6 {[%emt 0:00:30]} 3. Nc3 {[%emt 0:00:30]} d5 {[%emt 0:00:30]} 4. e3 {[%emt 0:00:30]} b6 {[%emt 0:00:30]} 5. b3 {[%emt 0:00:30]} Bb7 {[%emt 0:00:30]} 6. Bb2 {[%emt 0:00:30]} Nbd7 {[%emt 0:00:30]} 7. cxd5 {[%emt 0:00:30]} exd5 {[%emt 0:00:30]} 8. d4 {[%emt 0:00:30]} Bd6 {[%emt 0:00:30]} 9. g3 {[%emt 0:00:30]} O-O {[%emt 0:00:30]} 10. Bg2 {[%emt 0:00:30]} Ne4 {[%emt 0:00:30]} 11. O-O {[%emt 0:00:30]} Nxc3 {[%emt 0:00:30]} 12. Bxc3 {[%emt 0:00:30]} Qe7 {[%emt 0:00:30]} 13. Qc2 {[%emt 0:00:30]} Nf6 {[%emt 0:00:30]} 14. Nd2 {[%emt 0:00:30]} Ne4 {[%emt 0:00:30]} 15. Nxe4 {[%emt 0:00:30]} dxe4 {[%emt 0:00:30]} 16. b4 {[%emt 0:00:30]} Bd5 {[%emt 0:00:30]} 17. Rfb1 {[%emt 0:00:30]} a6 {[%emt 0:00:30]} 18. b5 {[%emt 0:00:30]} Qe6 {[%emt 0:00:30]} 19. bxa6 {[%emt 0:00:30]} Rxa6 {[%emt 0:00:30]} 20. a4 {[%emt 0:00:30]} g6 {[%emt 0:00:30]} 21. Bb4 {[%emt 0:00:30]} Re8 {[%emt 0:00:30]} 22. Bf1 {[%emt 0:00:30]} Ra7 {[%emt 0:00:30]} 23. Bb5 {[%emt 0:00:30]} Re7 {[%emt 0:00:30]} 24. Ra3 {[%emt 0:00:30]} h5 {[%emt 0:00:30]} 25. Rc3 {[%emt 0:00:30]} h4 {[%emt 0:00:30]} 26. Bxd6 {[%emt 0:00:30]} Qxd6 {[%emt 0:00:30]} 27. Rc1 {[%emt 0:00:30]} h3 {[%emt 0:00:30]} 28. Qd1 {[%emt 0:00:30]} Qb4 {[%emt 0:00:30]} 29. Qg4 {[%emt 0:00:30]} c6 {[%emt 0:00:30]} 30. Qxh3 {[%emt 0:00:30]} Kg7 {[%emt 0:00:30]} 31. Bxc6 {[%emt 0:00:30]} Rec7 {[%emt 0:00:30]} 32. Qh4 {[%emt 0:00:30]} Rxa4 {[%emt 0:00:30]} 33. Qd8 {[%emt 0:00:30]} Ra1 {[%emt 0:00:30]} 34. Rxa1 {[%emt 0:00:30]} Qxc3 {[%emt 0:00:30]} 35. Ra8 {[%emt 0:00:30]} 1-0

[Event "XIII Mediterranean Championship 2023"]
[Site "Castell-Platja d Aro"]
[Date "2023.11.05"]
[Round "2.4"]
[White "Ventura Bolet, Alexandre"]
[Black "Garriga Cazorla, Pere"]
[Result "0-1"]
[ECO "A11"]
[WhiteElo "2238"]
[BlackElo "2459"]
[Annotator "RC"]
[PlyCount "82"]
[EventDate "2023.10.26"]
[EventType "swiss"]
[EventCountry "ESP"]
[SourceTitle "playchess.com"]
[Source "ChessBase"]
[SourceQuality "1"]
[TimeControl "5400+30"]

1. Nf3 {[%emt 0:00:30]} d5 {[%emt 0:02:05]} 2. e3 {[%emt 0:00:26]} Nf6 {[%emt 0:00:09]} 3. c4 {[%emt 0:00:16]} c6 {[%emt 0:00:07]} 4. Nc3 {[%emt 0:00:25]} Nbd7 {[%emt 0:00:08]} 5. Qc2 {[%emt 0:00:47]} e5 {[%emt 0:00:07]} 6. cxd5 {[%emt 0:01:14]} Nxd5 {[%emt 0:00:09]} 7. a3 {[%emt 0:02:11]} Bd6 {[%emt 0:00:09]} 8. Ne4 {[%emt 0:04:29]} Bc7 {[%emt 0:04:12]} 9. Ng3 {[%emt 0:02:17]} N7f6 {[%emt 0:00:52]} 10. Be2 {[%emt 0:04:47]} Qe7 {[%emt 0:11:05]} 11. d3 {[%emt 0:10:59]} h5 {[%emt 0:03:36]} 12. Bd2 {[%emt 0:22:28]} a5 {[%emt 0:07:22]} 13. Rc1 {[%emt 0:04:23]} h4 {[%emt 0:07:19]} 14. Ne4 {[%emt 0:00:40]} h3 {[%emt 0:00:27]} 15. g3 {[%emt 0:01:52]} O-O {[%emt 0:00:49]} 16. Qc5 {[%emt 0:10:02]} Qxc5 {[%emt 0:01:48]} 17. Rxc5 {[%emt 0:03:47]} a4 {[%emt 0:04:50]} 18. Nxf6+ {[%emt 0:04:45]} Nxf6 {[%emt 0:03:01]} 19. Ng5 {[%emt 0:06:11]} Rd8 {[%emt 0:05:16]} 20. f4 {[%emt 0:03:20]} exf4 {[%emt 0:04:33]} 21. gxf4 {[%emt 0:00:06]} Nd5 {[%emt 0:00:29]} 22. Rg1 {[%emt 0:02:43]} Bb6 {[%emt 0:02:06]} 23. Rxd5 {[%emt 0:01:40]} cxd5 {[%emt 0:00:09]} 24. Rg3 {[%emt 0:01:33]} Ba5 {[%emt 0:00:51]} 25. Nxh3 {[%emt 0:01:01]} Bxh3 {[%emt 0:00:39]} 26. Rxh3 {[%emt 0:00:04]} Rd6 {[%emt 0:00:26]} 27. Rh5 {[%emt 0:01:49]} Rb6 {[%emt 0:00:44]} 28. Bxa5 {[%emt 0:03:03]} Rxa5 {[%emt 0:00:26]} 29. Bf3 {[%emt 0:00:04]} Rxb2 {[%emt 0:02:15]} 30. Bxd5 {[%emt 0:00:05]} Kf8 {[%emt 0:00:15]} 31. e4 {[%emt 0:02:53]} Rc5 {[%emt 0:00:45]} 32. Rh8+ {[%emt 0:01:02]} Ke7 {[%emt 0:00:06]} 33. Bc4 {[%emt 0:00:12]} b5 {[%emt 0:00:33]} 34. Rb8 {[%emt 0:00:07]} Kd6 {[%emt 0:00:28]} 35. Rd8+ {[%emt 0:02:52]} Kc7 {[%emt 0:00:47]} 36. Rd5 {[%emt 0:00:05]} Rxd5 {[%emt 0:00:31]} 37. Bxd5 {[%emt 0:00:05]} b4 {[%emt 0:00:20]} 38. axb4 {[%emt 0:00:25]} a3 {[%emt 0:00:02]} 39. Bxf7 {[%emt 0:00:19]} Rxh2 {[%emt 0:00:16]} 40. e5 {[%emt 0:01:53]} a2 {[%emt 0:00:09]} 41. Bxa2 {[%emt 0:00:04]} Rxa2 {[%emt 0:00:06]} 0-1

[Event "XIII Mediterranean Championship 2023"]
[Site "Castell-Platja d Aro"]
[Date "2023.11.05"]
[Round "2.5"]
[White "Garcia Ramos, Daniel"]
[Black "Rojano Alfonso, Carlos"]
[Result "1/2-1/2"]
[ECO "C64"]
[WhiteElo "2455"]
[BlackElo "2207"]
[Annotator "RC"]
[PlyCount "98"]
[EventDate "2023.10.26"]
[EventType "swiss"]
[EventCountry "ESP"]
[SourceTitle "playchess.com"]
[Source "ChessBase"]
[SourceQuality "1"]
[TimeControl "5400+30"]

1. e4 {[%emt 0:04:10]} e5 {[%emt 0:00:13]} 2. Nf3 {[%emt 0:00:35]} Nc6 {[%emt 0:00:05]} 3. Bb5 {[%emt 0:00:37]} Bc5 {[%emt 0:00:05]} 4. c3 {[%emt 0:00:11]} Nge7 {[%emt 0:00:35]} 5. O-O {[%emt 0:02:16]} Bb6 {[%emt 0:00:05]} 6. d4 {[%emt 0:07:06]} exd4 {[%emt 0:00:11]} 7. cxd4 {[%emt 0:00:06]} d5 {[%emt 0:00:03]} 8. exd5 {[%emt 0:03:14]} Nxd5 {[%emt 0:00:07]} 9. Re1+ {[%emt 0:02:16]} Be6 {[%emt 0:00:17]} 10. Nc3 {[%emt 0:04:39]} O-O {[%emt 0:03:42]} 11. h3 {[%emt 0:00:44]} Nxc3 {[%emt 0:05:21]} 12. bxc3 {[%emt 0:00:15]} Bd5 {[%emt 0:00:08]} 13. a4 {[%emt 0:06:11]} Ba5 {[%emt 0:09:34]} 14. Re3 {[%emt 0:10:46]} Re8 {[%emt 0:04:49]} 15. Bd2 {[%emt 0:18:50]} Qf6 {[%emt 0:10:28]} 16. Qe2 {[%emt 0:04:35]} Rxe3 {[%emt 0:01:18]} 17. fxe3 {[%emt 0:00:08]} Re8 {[%emt 0:03:11]} 18. Bd3 {[%emt 0:05:04]} Qe7 {[%emt 0:09:31]} 19. Qf1 {[%emt 0:02:05]} Qd7 {[%emt 0:04:28]} 20. Rb1 {[%emt 0:04:32]} Bxf3 {[%emt 0:02:57]} 21. gxf3 {[%emt 0:01:00]} Ne7 {[%emt 0:02:06]} 22. Rxb7 {[%emt 0:06:40]} Bb6 {[%emt 0:06:12]} 23. Bb5 {[%emt 0:03:33]} Qc8 {[%emt 0:01:36]} 24. Rxb6 {[%emt 0:03:18]} axb6 {[%emt 0:00:12]} 25. Bxe8 {[%emt 0:00:05]} Qxe8 {[%emt 0:00:04]} 26. Qc4 {[%emt 0:01:31]} Qd7 {[%emt 0:01:40]} 27. e4 {[%emt 0:01:02]} Ng6 {[%emt 0:01:15]} 28. Kg2 {[%emt 0:05:28]} h5 {[%emt 0:06:35]} 29. Qb5 {[%emt 0:02:04]} Qe6 {[%emt 0:01:42]} 30. Qxh5 {[%emt 0:00:42]} Qa2 {[%emt 0:01:08]} 31. Qg5 {[%emt 0:00:03]} Qxa4 {[%emt 0:00:18]} 32. h4 {[%emt 0:00:37]} Qd1 {[%emt 0:00:36]} 33. Kf2 {[%emt 0:01:07]} f6 {[%emt 0:02:46]} 34. Qd5+ {[%emt 0:00:03]} Kh8 {[%emt 0:01:16]} 35. Ke3 {[%emt 0:01:27]} Qg1+ {[%emt 0:02:56]} 36. Kd3 {[%emt 0:00:09]} Qf1+ {[%emt 0:00:14]} 37. Kc2 {[%emt 0:00:12]} Qxf3 {[%emt 0:00:06]} 38. h5 {[%emt 0:01:14]} Nh4 {[%emt 0:03:45]} 39. h6 {[%emt 0:00:22]} gxh6 {[%emt 0:00:17]} 40. Qd8+ {[%emt 0:00:14]} Kh7 {[%emt 0:00:08]} 41. Qxc7+ {[%emt 0:00:10]} Kg6 {[%emt 0:00:27]} 42. Qf4 {[%emt 0:01:36]} Qxf4 {[%emt 0:02:16]} 43. Bxf4 {[%emt 0:00:01]} Ng2 {[%emt 0:01:20]} 44. Bc7 {[%emt 0:00:40]} h5 {[%emt 0:02:38]} 45. Bxb6 {[%emt 0:00:40]} h4 {[%emt 0:01:23]} 46. Bc7 {[%emt 0:00:04]} h3 {[%emt 0:02:07]} 47. Kd2 {[%emt 0:00:21]} f5 {[%emt 0:00:24]} 48. exf5+ {[%emt 0:01:07]} Kxf5 {[%emt 0:00:03]} 49. Bh2 {[%emt 0:00:09]} Ke4 {[%emt 0:00:09]} 1/2-1/2

[Event "XIII Mediterranean Championship 2023"]
[Site "Castell-Platja d Aro"]
[Date "2023.11.05"]
[Round "2.6"]
[White "Vehi Bach, Victor Manuel"]
[Black "Alexakis, Dimitris"]
[Result "0-1"]
[ECO "B44"]
[WhiteElo "2216"]
[BlackElo "2458"]
[Annotator "RC"]
[PlyCount "60"]
[EventDate "2023.10.26"]
[EventType "swiss"]
[EventCountry "ESP"]
[SourceTitle "playchess.com"]
[Source "ChessBase"]
[SourceQuality "1"]
[TimeControl "5400+30"]

1. e4 {[%emt 0:00:03]} c5 {[%emt 0:18:11]} 2. Nf3 {[%emt 0:00:21]} e6 {[%emt 0:00:18]} 3. d4 {[%emt 0:00:14]} cxd4 {[%emt 0:00:05]} 4. Nxd4 {[%emt 0:00:05]} Nc6 {[%emt 0:00:03]} 5. Bf4 {[%emt 0:00:31]} d6 {[%emt 0:15:26]} 6. Nxc6 {[%emt 0:00:39]} bxc6 {[%emt 0:00:06]} 7. c4 {[%emt 0:00:09]} Rb8 {[%emt 0:25:35]} 8. Qc2 {[%emt 0:04:00]} c5 {[%emt 0:08:42]} 9. Qd2 {[%emt 0:04:00]} e5 {[%emt 0:06:38]} 10. Be3 {[%emt 0:17:53]} Ne7 {[%emt 0:00:25]} 11. Be2 {[%emt 0:05:08]} Nc6 {[%emt 0:01:26]} 12. Bd1 {[%emt 0:09:23]} Rb4 {[%emt 0:03:15]} 13. Nc3 {[%emt 0:06:27]} Rxc4 {[%emt 0:01:54]} 14. a3 {[%emt 0:01:02]} Be7 {[%emt 0:03:35]} 15. b3 {[%emt 0:15:24]} Rd4 {[%emt 0:02:07]} 16. Bxd4 {[%emt 0:01:05]} Nxd4 {[%emt 0:00:17]} 17. b4 {[%emt 0:06:40]} Ba6 {[%emt 0:04:21]} 18. Ba4+ {[%emt 0:07:28]} Kf8 {[%emt 0:00:06]} 19. b5 {[%emt 0:00:04]} Bb7 {[%emt 0:00:19]} 20. O-O {[%emt 0:05:20]} Bg5 {[%emt 0:01:18]} 21. Qd3 {[%emt 0:00:58]} Qa5 {[%emt 0:02:59]} 22. Ra2 {[%emt 0:01:03]} g6 {[%emt 0:00:57]} 23. Rb1 {[%emt 0:04:19]} Kg7 {[%emt 0:01:10]} 24. Bb3 {[%emt 0:04:24]} Nxb3 {[%emt 0:02:34]} 25. Rxb3 {[%emt 0:00:10]} d5 {[%emt 0:00:37]} 26. exd5 {[%emt 0:04:36]} c4 {[%emt 0:00:02]} 27. Qxc4 {[%emt 0:00:27]} Rc8 {[%emt 0:00:01]} 28. Qd3 {[%emt 0:01:40]} e4 {[%emt 0:00:21]} 29. Qg3 {[%emt 0:00:44]} Bf6 {[%emt 0:00:33]} 30. Rc2 {[%emt 0:00:34]} Bxd5 {[%emt 0:00:34]} 0-1

[Event "XIII Mediterranean Championship 2023"]
[Site "Castell-Platja d Aro"]
[Date "2023.11.05"]
[Round "2.7"]
[White "Eugene, Floryan"]
[Black "Domene Mulyukov, Alexander"]
[Result "1-0"]
[ECO "B45"]
[WhiteElo "2426"]
[BlackElo "2198"]
[Annotator "RC"]
[PlyCount "93"]
[EventDate "2023.10.26"]
[EventType "swiss"]
[EventCountry "ESP"]
[SourceTitle "playchess.com"]
[Source "ChessBase"]
[SourceQuality "1"]
[TimeControl "5400+30"]

1. e4 {[%emt 0:10:46]} c5 {[%emt 0:00:38]} 2. Nf3 {[%emt 0:01:28]} e6 {[%emt 0:00:16]} 3. d4 {[%emt 0:00:08]} cxd4 {[%emt 0:00:14]} 4. Nxd4 {[%emt 0:00:05]} Nf6 {[%emt 0:01:34]} 5. Nc3 {[%emt 0:00:12]} Nc6 {[%emt 0:00:08]} 6. Ndb5 {[%emt 0:00:38]} Bb4 {[%emt 0:01:20]} 7. a3 {[%emt 0:01:39]} Bxc3+ {[%emt 0:00:09]} 8. Nxc3 {[%emt 0:00:04]} d5 {[%emt 0:00:10]} 9. exd5 {[%emt 0:00:06]} exd5 {[%emt 0:00:04]} 10. Bd3 {[%emt 0:00:44]} Bg4 {[%emt 0:00:56]} 11. f3 {[%emt 0:00:08]} Be6 {[%emt 0:00:06]} 12. Bg5 {[%emt 0:11:03]} h6 {[%emt 0:06:20]} 13. Bh4 {[%emt 0:00:47]} O-O {[%emt 0:00:12]} 14. O-O {[%emt 0:00:17]} Qb6+ {[%emt 0:02:12]} 15. Kh1 {[%emt 0:01:17]} Nd7 {[%emt 0:05:32]} 16. Bf2 {[%emt 0:11:35]} Qd8 {[%emt 0:03:20]} 17. f4 {[%emt 0:02:37]} f5 {[%emt 0:04:27]} 18. Re1 {[%emt 0:02:24]} Qf6 {[%emt 0:01:32]} 19. Qf3 {[%emt 0:00:26]} Qf7 {[%emt 0:16:22]} 20. Qe2 {[%emt 0:05:03]} Rae8 {[%emt 0:14:16]} 21. Nb5 {[%emt 0:00:08]} Re7 {[%emt 0:00:10]} 22. Nc7 {[%emt 0:02:44]} Nde5 {[%emt 0:05:54]} 23. Bc5 {[%emt 0:00:35]} Rxc7 {[%emt 0:01:06]} 24. Bxf8 {[%emt 0:00:08]} Nxd3 {[%emt 0:01:43]} 25. cxd3 {[%emt 0:00:31]} Nd4 {[%emt 0:01:33]} 26. Qe5 {[%emt 0:00:12]} Nc2 {[%emt 0:00:37]} 27. Rac1 {[%emt 0:02:12]} Nxe1 {[%emt 0:15:25]} 28. Rxc7 {[%emt 0:00:09]} Nxd3 {[%emt 0:00:05]} 29. Qxg7+ {[%emt 0:01:06]} Qxg7 {[%emt 0:00:11]} 30. Bxg7 {[%emt 0:00:03]} Nxf4 {[%emt 0:00:56]} 31. Rxb7 {[%emt 0:00:23]} d4 {[%emt 0:03:28]} 32. Bxd4 {[%emt 0:00:23]} Bd5 {[%emt 0:00:03]} 33. Rg7+ {[%emt 0:00:51]} Kf8 {[%emt 0:00:02]} 34. Be5 {[%emt 0:00:20]} h5 {[%emt 0:02:35]} 35. Rd7 {[%emt 0:00:30]} Bxg2+ {[%emt 0:01:12]} 36. Kg1 {[%emt 0:00:03]} Bc6 {[%emt 0:00:08]} 37. Rc7 {[%emt 0:02:11]} Nh3+ {[%emt 0:00:20]} 38. Kf1 {[%emt 0:00:02]} Be4 {[%emt 0:02:16]} 39. Bg7+ {[%emt 0:00:12]} Kg8 {[%emt 0:00:40]} 40. Bh6 {[%emt 0:01:25]} f4 {[%emt 0:01:03]} 41. Re7 {[%emt 0:00:26]} Bh1 {[%emt 0:02:58]} 42. Rxa7 {[%emt 0:00:37]} f3 {[%emt 0:00:31]} 43. Rg7+ {[%emt 0:00:18]} Kh8 {[%emt 0:00:09]} 44. a4 {[%emt 0:01:52]} h4 {[%emt 0:01:23]} 45. a5 {[%emt 0:00:24]} f2 {[%emt 0:00:20]} 46. Rg2 {[%emt 0:00:10]} Kh7 {[%emt 0:02:11]} 47. Be3 {[%emt 0:00:12]} 1-0

[Event "XIII Mediterranean Championship 2023"]
[Site "Castell-Platja d Aro"]
[Date "2023.11.05"]
[Round "2.8"]
[White "Valle Luis, Leo"]
[Black "Ayats Llobera, Gerard"]
[Result "0-1"]
[ECO "C63"]
[WhiteElo "2216"]
[BlackElo "2442"]
[Annotator "RC"]
[PlyCount "124"]
[EventDate "2023.10.26"]
[EventType "swiss"]
[EventCountry "ESP"]
[SourceTitle "playchess.com"]
[Source "ChessBase"]
[SourceQuality "1"]
[TimeControl "5400+30"]

1. e4 {[%emt 1:31:00]} e5 {[%emt 0:08:31]} 2. Nf3 {[%emt 0:00:00]} Nc6 {[%emt 0:00:02]} 3. Bb5 {[%emt 0:00:00]} f5 {[%emt 0:00:15]} 4. d3 {[%emt 0:00:00]} fxe4 {[%emt 0:00:30]} 5. dxe4 {[%emt 0:00:00]} Nf6 {[%emt 0:00:05]} 6. Nc3 {[%emt 0:00:00]} Bb4 {[%emt 0:00:21]} 7. Bg5 {[%emt 0:00:00]} Bxc3+ {[%emt 0:05:07]} 8. bxc3 {[%emt 0:00:00]} d6 {[%emt 0:00:15]} 9. Qe2 {[%emt 0:00:00]} Be6 {[%emt 0:06:03]} 10. Rd1 {[%emt 0:00:00]} Qe7 {[%emt 0:08:31]} 11. O-O {[%emt 0:00:00]} O-O {[%emt 0:02:31]} 12. Nd2 {[%emt 0:00:00]} h6 {[%emt 0:04:47]} 13. Bxf6 {[%emt 0:00:00]} Rxf6 {[%emt 0:00:50]} 14. Bc4 {[%emt 0:00:00]} Raf8 {[%emt 0:01:04]} 15. Rb1 {[%emt 0:00:00]} Nd8 {[%emt 0:00:53]} 16. Bxe6+ {[%emt 0:00:00]} Qxe6 {[%emt 0:00:33]} 17. Qc4 {[%emt 0:00:00]} Qxc4 {[%emt 0:00:11]} 18. Nxc4 {[%emt 0:00:00]} Kf7 {[%emt 0:03:50]} 19. Ne3 {[%emt 0:00:00]} Ke6 {[%emt 0:01:11]} 20. f3 {[%emt 0:00:00]} Kd7 {[%emt 0:01:38]} 21. Rfd1 {[%emt 0:00:00]} b6 {[%emt 0:02:21]} 22. Ng4 {[%emt 0:00:00]} Re6 {[%emt 0:00:14]} 23. Kf2 {[%emt 0:00:00]} Kc6 {[%emt 0:00:41]} 24. Ke2 {[%emt 0:00:00]} Re7 {[%emt 0:00:35]} 25. Ne3 {[%emt 0:00:00]} Ref7 {[%emt 0:00:20]} 26. Nd5 {[%emt 0:00:00]} Ne6 {[%emt 0:00:23]} 27. Nb4+ {[%emt 0:00:00]} Kb7 {[%emt 0:00:55]} 28. Nd3 {[%emt 0:00:00]} a5 {[%emt 0:06:30]} 29. Ke3 {[%emt 0:00:00]} Kc6 {[%emt 0:00:42]} 30. a4 {[%emt 0:00:00]} g5 {[%emt 0:02:39]} 31. Rd2 {[%emt 0:00:00]} h5 {[%emt 0:00:23]} 32. Rf2 {[%emt 0:00:10]} Nc5 {[%emt 0:05:40]} 33. Ra1 {[%emt 0:04:30]} Rb8 {[%emt 0:05:26]} 34. c4 {[%emt 0:00:18]} Ne6 {[%emt 0:00:49]} 35. c3 {[%emt 0:00:07]} Nc5 {[%emt 0:00:49]} 36. Ne1 {[%emt 0:02:20]} g4 {[%emt 0:00:39]} 37. Raa2 {[%emt 0:01:44]} gxf3 {[%emt 0:00:57]} 38. Nxf3 {[%emt 0:02:48]} Rbf8 {[%emt 0:03:52]} 39. g3 {[%emt 0:00:24]} Kd7 {[%emt 0:11:27]} 40. Rf1 {[%emt 0:02:43]} Ke8 {[%emt 0:00:15]} 41. Raa1 {[%emt 0:00:11]} h4 {[%emt 0:00:42]} 42. Ra2 {[%emt 0:02:54]} hxg3 {[%emt 0:01:01]} 43. hxg3 {[%emt 0:00:02]} Rg7 {[%emt 0:00:09]} 44. Rg1 {[%emt 0:00:51]} Rfg8 {[%emt 0:00:23]} 45. Rag2 {[%emt 0:01:12]} Rg4 {[%emt 0:00:45]} 46. Nd2 {[%emt 0:02:16]} Nxa4 {[%emt 0:00:09]} 47. Kd3 {[%emt 0:00:00]} Kd7 {[%emt 0:00:07]} 48. Kc2 {[%emt 0:00:17]} Nc5 {[%emt 0:00:08]} 49. Rh2 {[%emt 0:00:13]} Rxg3 {[%emt 0:00:22]} 50. Rh7+ {[%emt 0:00:08]} Kc6 {[%emt 0:00:14]} 51. Rf1 {[%emt 0:00:28]} R8g7 {[%emt 0:00:05]} 52. Rh6 {[%emt 0:00:46]} Rg2 {[%emt 0:00:53]} 53. Kc1 {[%emt 0:00:05]} Re2 {[%emt 0:00:50]} 54. Nf3 {[%emt 0:01:16]} Rxe4 {[%emt 0:00:24]} 55. Rd1 {[%emt 0:00:06]} Re3 {[%emt 0:00:45]} 56. Rf6 {[%emt 0:00:06]} Rxc3+ {[%emt 0:00:42]} 57. Kb2 {[%emt 0:00:01]} Rg2+ {[%emt 0:01:50]} 58. Kb1 {[%emt 0:01:07]} Kb7 {[%emt 0:01:15]} 59. Rf7 {[%emt 0:00:10]} Rf2 {[%emt 0:00:45]} 60. Nxe5 {[%emt 0:00:09]} Rxf7 {[%emt 0:00:57]} 61. Nxf7 {[%emt 0:00:03]} Rxc4 {[%emt 0:00:08]} 62. Nd8+ {[%emt 0:00:21]} Ka6 {[%emt 0:01:02]} 0-1

[Event "XIII Mediterranean Championship 2023"]
[Site "Castell-Platja d Aro"]
[Date "2023.11.05"]
[Round "2.9"]
[White "Gilevych, Artem"]
[Black "Banos, Oscar"]
[Result "1-0"]
[ECO "E14"]
[WhiteElo "2416"]
[BlackElo "2188"]
[Annotator "RC"]
[PlyCount "82"]
[EventDate "2023.10.26"]
[EventType "swiss"]
[EventCountry "ESP"]
[SourceTitle "playchess.com"]
[Source "ChessBase"]
[SourceQuality "1"]
[TimeControl "5400+30"]

1. Nf3 {[%emt 0:01:35]} d5 {[%emt 0:00:17]} 2. d4 {[%emt 0:01:10]} Nf6 {[%emt 0:00:47]} 3. c4 {[%emt 0:00:15]} e6 {[%emt 0:00:41]} 4. e3 {[%emt 0:01:27]} Nbd7 {[%emt 0:06:13]} 5. Bd3 {[%emt 0:00:34]} b6 {[%emt 0:00:22]} 6. cxd5 {[%emt 0:02:10]} exd5 {[%emt 0:00:28]} 7. O-O {[%emt 0:00:39]} Bd6 {[%emt 0:06:30]} 8. Nc3 {[%emt 0:06:16]} Bb7 {[%emt 0:01:17]} 9. b3 {[%emt 0:01:36]} a6 {[%emt 0:05:02]} 10. Bb2 {[%emt 0:24:55]} O-O {[%emt 0:00:52]} 11. Rc1 {[%emt 0:04:53]} Re8 {[%emt 0:13:16]} 12. Rc2 {[%emt 0:06:57]} Ne4 {[%emt 0:07:08]} 13. Qc1 {[%emt 0:01:12]} Rc8 {[%emt 0:23:53]} 14. Ba3 {[%emt 0:07:35]} c5 {[%emt 0:06:21]} 15. Ne2 {[%emt 0:00:51]} b5 {[%emt 0:08:48]} 16. dxc5 {[%emt 0:02:38]} Ndxc5 {[%emt 0:01:10]} 17. Bxc5 {[%emt 0:01:46]} Nxc5 {[%emt 0:02:06]} 18. Bf5 {[%emt 0:04:01]} Rc7 {[%emt 0:00:26]} 19. Rd1 {[%emt 0:03:25]} g6 {[%emt 0:00:33]} 20. Bh3 {[%emt 0:00:40]} b4 {[%emt 0:02:59]} 21. Nfd4 {[%emt 0:07:27]} Qe7 {[%emt 0:02:10]} 22. g3 {[%emt 0:02:12]} Bc8 {[%emt 0:02:39]} 23. Bg2 {[%emt 0:02:11]} Be6 {[%emt 0:01:13]} 24. Nf4 {[%emt 0:02:37]} Bxf4 {[%emt 0:00:42]} 25. gxf4 {[%emt 0:01:10]} Rec8 {[%emt 0:01:43]} 26. Qb1 {[%emt 0:04:51]} Bg4 {[%emt 0:01:45]} 27. Rdc1 {[%emt 0:00:18]} Qd7 {[%emt 0:01:45]} 28. Re1 {[%emt 0:08:17]} Bh3 {[%emt 0:00:45]} 29. Bf3 {[%emt 0:00:10]} Bg4 {[%emt 0:02:04]} 30. Bh1 {[%emt 0:00:12]} Bh3 {[%emt 0:00:16]} 31. Bf3 {[%emt 0:00:59]} Bg4 {[%emt 0:00:08]} 32. Bh1 {[%emt 0:00:31]} Bh3 {[%emt 0:00:09]} 33. Qd1 {[%emt 0:00:04]} Ne4 {[%emt 0:01:58]} 34. Rxc7 {[%emt 0:00:30]} Rxc7 {[%emt 0:00:13]} 35. Bxe4 {[%emt 0:00:05]} dxe4 {[%emt 0:00:04]} 36. f3 {[%emt 0:01:02]} exf3 {[%emt 0:00:28]} 37. Qxf3 {[%emt 0:00:04]} Rc3 {[%emt 0:01:15]} 38. Kf2 {[%emt 0:00:59]} Qc8 {[%emt 0:00:20]} 39. Rg1 {[%emt 0:00:30]} Bf5 {[%emt 0:00:29]} 40. Qd5 {[%emt 0:00:56]} Rd3 {[%emt 0:00:40]} 41. Qe5 {[%emt 0:00:49]} Bg4 {[%emt 0:01:05]} 1-0

[Event "XIII Mediterranean Championship 2023"]
[Site "Castell-Platja d Aro"]
[Date "2023.11.05"]
[Round "2.10"]
[White "Lever, Erwan"]
[Black "Narciso Dublan, Marc"]
[Result "1/2-1/2"]
[ECO "A90"]
[WhiteElo "2184"]
[BlackElo "2401"]
[Annotator "RC"]
[PlyCount "70"]
[EventDate "2023.10.26"]
[EventType "swiss"]
[EventCountry "ESP"]
[SourceTitle "playchess.com"]
[Source "ChessBase"]
[SourceQuality "1"]
[TimeControl "5400+30"]

1. d4 {[%emt 0:05:31]} e6 {[%emt 0:00:27]} 2. c4 {[%emt 0:00:41]} f5 {[%emt 0:00:31]} 3. g3 {[%emt 0:00:08]} Nf6 {[%emt 0:00:11]} 4. Bg2 {[%emt 0:00:06]} d5 {[%emt 0:00:47]} 5. Nf3 {[%emt 0:00:08]} Bd6 {[%emt 0:00:17]} 6. O-O {[%emt 0:00:11]} O-O {[%emt 0:00:07]} 7. b3 {[%emt 0:00:03]} b6 {[%emt 0:00:34]} 8. Bb2 {[%emt 0:04:17]} Bb7 {[%emt 0:00:26]} 9. Nbd2 {[%emt 0:00:21]} a5 {[%emt 0:04:15]} 10. a3 {[%emt 0:01:35]} Ne4 {[%emt 0:05:22]} 11. Ne5 {[%emt 0:00:54]} Bxe5 {[%emt 0:05:57]} 12. dxe5 {[%emt 0:00:20]} Qe7 {[%emt 0:01:22]} 13. Nf3 {[%emt 0:06:30]} dxc4 {[%emt 0:05:14]} 14. bxc4 {[%emt 0:01:58]} Nc5 {[%emt 0:05:42]} 15. Qc2 {[%emt 0:01:46]} Be4 {[%emt 0:00:35]} 16. Qc3 {[%emt 0:02:02]} Na4 {[%emt 0:06:22]} 17. Qb3 {[%emt 0:00:07]} Nxb2 {[%emt 0:00:06]} 18. Qxb2 {[%emt 0:00:04]} Nc6 {[%emt 0:00:13]} 19. Rfc1 {[%emt 0:05:57]} Rfd8 {[%emt 0:06:31]} 20. Ne1 {[%emt 0:04:11]} Bxg2 {[%emt 0:03:05]} 21. Kxg2 {[%emt 0:00:16]} Qc5 {[%emt 0:07:02]} 22. Nf3 {[%emt 0:10:20]} h6 {[%emt 0:10:50]} 23. h4 {[%emt 0:06:18]} a4 {[%emt 0:03:07]} 24. Rab1 {[%emt 0:06:26]} Ra5 {[%emt 0:07:15]} 25. e3 {[%emt 0:00:33]} Rd3 {[%emt 0:04:44]} 26. Rd1 {[%emt 0:07:15]} Qxa3 {[%emt 0:04:37]} 27. Qxa3 {[%emt 0:00:33]} Rxa3 {[%emt 0:00:03]} 28. Rd7 {[%emt 0:00:13]} Rb3 {[%emt 0:08:50]} 29. Rbd1 {[%emt 0:00:28]} a3 {[%emt 0:03:22]} 30. Rxc7 {[%emt 0:01:50]} a2 {[%emt 0:00:14]} 31. Rdd7 {[%emt 0:08:58]} a1=Q {[%emt 0:05:04]} 32. Rxg7+ {[%emt 0:00:06]} Kf8 {[%emt 0:00:32]} 33. Rh7 {[%emt 0:00:32]} Kg8 {[%emt 0:01:37]} 34. Rhg7+ {[%emt 0:00:06]} Kf8 {[%emt 0:00:11]} 35. Rh7 {[%emt 0:00:05]} Kg8 {[%emt 0:01:11]} 1/2-1/2